bitfinex-derivatives/quotes_SOLF0:USTF0_20260311
["timestamp","ask_amount","ask_price","bid_price","bid_amount"]
[1773243004225,163.529,85.599,85.445,7.31813337]
[1773243004226,2.54118047,85.52,85.445,7.31813337]
[1773243004530,2.54118047,85.52,85.42,21.068]
[1773243004531,6.95743073,85.52,85.47,2.54118047]
[1773243005030,6.95743073,85.52,85.461,7.31813337]
[1773243005031,9.4986112,85.52,85.461,7.31813337]
[1773243005231,2.54118047,85.51,85.45,2.54118047]
[1773243005429,2.54118047,85.51,85.45,9.85931384]
[1773243005630,6.95743073,85.509,85.45,7.31813337]
[1773243006127,6.95743073,85.489,85.415,7.31813337]
[1773243006330,6.95743073,85.477,85.415,7.31813337]
[1773243006524,6.95743073,85.519,85.415,7.31813337]
[1773243006730,10.523,85.508,85.446,10.531]
[1773243006926,6.95743073,85.519,85.447,7.31813337]
[1773243007532,10.524,85.506,85.448,10.531]
[1773243007727,6.95743073,85.519,85.449,7.31813337]
[1773243008230,6.95743073,85.519,85.456,10.53]
[1773243008434,6.95743073,85.519,85.449,7.31813337]
[1773243008836,6.95743073,85.507,85.421,7.31813337]
[1773243009428,163.605,85.559,85.421,7.31813337]
[1773243009429,6.95743073,85.494,85.421,7.31813337]
[1773243009736,6.95743073,85.494,85.404,7.31813337]
[1773243009939,6.95743073,85.485,85.411,7.31813337]
[1773243010733,6.95743073,85.47,85.394,7.31813337]
[1773243011133,10.529,85.459,85.372,14.68]
[1773243011434,14.68,85.501,85.389,15.72755163]
[1773243011435,6.95743073,85.458,85.389,15.72755163]
[1773243011840,14.68,85.501,85.389,0.00055163]
[1773243011841,6.95743073,85.436,85.389,0.00055163]
[1773243012330,6.95743073,85.407,85.389,0.00055163]
[1773243012532,6.38249232,85.4,85.325,2.03748862]
[1773243012833,6.95743073,85.368,85.294,7.31813337]
[1773243014137,6.95743073,85.389,85.318,7.31813337]
[1773243014432,6.95743073,85.389,85.259,164.179]
[1773243014433,6.95743073,85.389,85.281,7.31813337]
[1773243014634,6.95743073,85.362,85.281,7.31813337]
[1773243015230,6.95743073,85.362,85.296,7.31813337]
[1773243015430,6.95743073,85.389,85.296,7.31813337]
[1773243015834,6.95743073,85.369,85.296,7.31813337]
[1773243016030,6.95743073,85.369,85.274,7.31813337]
[1773243016235,6.95743073,85.361,85.278,7.31813337]
[1773243017139,6.95743073,85.356,85.279,10.551]
[1773243017444,14.7,85.383,85.259,7.31813337]
[1773243017445,6.95743073,85.349,85.259,7.31813337]
[1773243018632,6.95743073,85.335,85.259,7.31813337]
[1773243018840,6.95743073,85.309,85.201,7.31813337]
[1773243019142,6.95743073,85.265,85.185,10.563]
[1773243019330,6.95743073,85.265,85.177,23.32024852]
[1773243019537,6.95743073,85.265,85.18,6.38249232]
[1773243019738,6.95743073,85.265,85.181,7.31813337]
[1773243019939,6.95743073,85.265,85.193,7.24399759]
[1773243020542,492.022,85.35,85.177,16.00211515]
[1773243020543,7.47145274,85.309,85.201,7.24399759]
[1773243020841,6.38249232,85.31,85.2,6.38249232]
[1773243020842,7.47145274,85.305,85.222,7.24399759]
[1773243021740,7.47145274,85.299,85.221,7.24399759]
[1773243021940,7.47145274,85.319,85.221,7.24399759]
[1773243022337,7.47145274,85.317,85.21,6.38249232]
[1773243022639,7.47145274,85.317,85.177,16.00211515]
[1773243022640,7.47145274,85.279,85.191,7.24399759]
[1773243022836,7.47145274,85.27,85.191,7.24399759]
[1773243023037,7.47145274,85.259,85.177,16.00211515]
[1773243023234,7.47145274,85.228,85.177,16.00211515]
[1773243023743,7.47145274,85.228,85.112,14.7]
[1773243023744,7.47145274,85.219,85.131,7.24399759]
[1773243024043,6.42677888,85.22,85.131,7.24399759]
[1773243024044,7.47145274,85.203,85.131,7.24399759]
[1773243024540,7.47145274,85.188,85.111,7.24399759]
[1773243024738,7.47145274,85.188,85.093,7.24399759]
[1773243024946,7.47145274,85.219,85.13,17.81399759]
[1773243025138,7.47145274,85.219,85.13,7.24399759]
[1773243025545,7.47145274,85.218,85.136,7.24399759]
[1773243026045,7.47145274,85.218,85.092,2.04362673]
[1773243026046,7.47145274,85.239,85.177,10.564]
[1773243026235,7.47145274,85.239,85.151,7.24399759]
[1773243026435,7.47145274,85.279,85.171,7.24399759]
[1773243026634,7.47145274,85.27,85.182,17.80699759]
[1773243026846,7.47145274,85.27,85.182,7.24399759]
[1773243027246,7.47145274,85.27,85.193,17.80599759]
[1773243027539,7.47145274,85.27,85.193,7.24399759]
[1773243027941,7.47145274,85.256,85.181,10.564]
[1773243028244,7.47145274,85.256,85.171,7.24399759]
[1773243028440,7.47145274,85.256,85.175,7.24399759]
[1773243029638,7.47145274,85.239,85.153,7.24399759]
[1773243030339,7.47145274,85.239,85.095,164.497]
[1773243030340,7.47145274,85.239,85.156,7.24399759]
[1773243030941,7.47145274,85.239,85.171,17.80899759]
[1773243031339,7.47145274,85.262,85.172,7.24399759]
[1773243031642,7.47145274,85.283,85.203,7.24399759]
[1773243032043,18.02545274,85.259,85.185,10.563]
[1773243032236,7.47145274,85.258,85.183,7.24399759]
[1773243032642,21.096,85.308,85.161,7.24399759]
[1773243032643,7.47145274,85.243,85.161,7.24399759]
[1773243032843,7.47145274,85.239,85.139,7.24399759]
[1773243033041,164.15,85.275,85.083,164.52]
[1773243033042,7.47145274,85.194,85.116,7.24399759]
[1773243034347,10.564,85.176,85.116,7.24399759]
[1773243034550,7.47145274,85.189,85.116,7.24399759]
[1773243034953,7.47145274,85.189,85.12,7.24399759]
[1773243035344,7.47145274,85.189,85.098,7.24399759]
[1773243035548,10.567,85.157,85.098,7.24399759]
[1773243035853,7.47145274,85.179,85.098,7.24399759]
[1773243036038,10.564,85.176,85.109,10.573]
[1773243036241,6.42677888,85.18,85.098,7.24399759]
[1773243036242,7.47145274,85.175,85.098,7.24399759]
[1773243036649,14.7,85.2,85.063,7.24399759]
[1773243036650,7.47145274,85.159,85.063,7.24399759]
[1773243036945,14.7,85.2,85.063,7.24399759]
[1773243036946,6.42677888,85.2,85.091,7.24399759]
[1773243037153,6.42677888,85.2,85.119,7.24399759]
[1773243037348,7.47145274,85.199,85.119,7.24399759]
[1773243038045,7.47145274,85.189,85.081,7.24399759]
[1773243038243,10.564,85.178,85.098,7.24399759]
[1773243038947,18.03445274,85.189,85.113,7.24399759]
[1773243039346,18.03445274,85.189,85.117,10.572]
[1773243039657,10.561,85.201,85.118,7.24399759]
[1773243039948,10.56,85.209,85.141,7.24399759]
[1773243040152,7.32582661,85.209,85.12,6.93515563]
[1773243040943,10.564,85.179,85.12,6.93515563]
[1773243042050,7.32582661,85.188,85.12,6.93515563]
[1773243043353,7.32582661,85.188,85.1,6.42677888]
[1773243043354,7.32582661,85.188,85.1,6.93515563]
[1773243043755,7.32582661,85.156,85.079,6.93515563]
[1773243044457,7.32582661,85.144,85.079,6.93515563]
[1773243044646,7.32582661,85.144,85.07,10.577]
[1773243044647,7.32582661,85.144,85.057,6.93515563]
[1773243044854,14.7,85.155,85.021,6.93515563]
[1773243044855,7.32582661,85.129,85.021,6.93515563]
[1773243045051,7.32582661,85.104,85.021,6.93515563]
[1773243046752,7.32582661,85.129,85.021,6.93515563]
[1773243047058,10.572,85.115,85.047,10.58]
[1773243047248,7.32582661,85.129,85.031,6.93515563]
[1773243047461,10.577,85.077,85.015,10.584]
[1773243047758,10.577,85.077,84.964,21.182]
[1773243047759,7.32582661,85.069,84.987,6.93515563]
[1773243048054,6.42677888,85.07,84.966,6.93515563]
[1773243048055,7.32582661,85.06,84.966,6.93515563]
[1773243048253,7.32582661,85.06,84.971,6.93515563]
[1773243048654,7.32582661,85.06,84.984,10.588]
[1773243048655,10.58,85.051,84.984,10.588]
[1773243048847,7.32582661,85.049,84.971,6.93515563]
[1773243049051,7.32582661,85.049,84.95,6.93515563]
[1773243049355,7.32582661,85.032,84.95,6.93515563]
[1773243049854,7.32582661,85.032,84.922,2.04723946]
[1773243049855,7.32582661,85.054,84.971,7.17206046]
[1773243050062,6.95895351,85.069,84.971,7.17206046]
[1773243050259,6.95895351,85.069,84.922,2.04723946]
[1773243050260,6.95895351,85.049,84.949,7.17206046]
[1773243050450,6.95895351,85.049,84.966,7.17206046]
[1773243050960,6.95895351,85.049,84.91,6.42677888]
[1773243050961,6.95895351,85.029,84.945,7.17206046]
[1773243051956,6.95895351,85.029,84.965,0.0001287]
[1773243052360,6.95895351,85.059,84.966,7.17206046]
[1773243053054,10.583,85.029,84.966,7.17206046]
[1773243053262,10.583,85.029,84.965,0.0001287]
[1773243053263,6.95895351,85.036,84.965,0.0001287]
[1773243053657,6.95895351,85.036,84.965,7.17218916]
[1773243054352,6.95895351,85.059,84.967,7.17206046]
[1773243055265,17.53795351,85.059,84.988,7.17206046]
[1773243055461,6.95895351,85.059,84.988,7.17206046]
[1773243055862,6.95895351,85.059,84.989,10.587]
[1773243056269,6.95895351,85.059,84.99,7.17206046]
[1773243056467,10.579,85.057,84.99,7.17206046]
[1773243056670,6.95895351,85.056,84.99,7.17206046]
[1773243056862,6.95895351,85.079,84.991,7.17206046]
[1773243057063,6.95895351,85.079,85.006,10.585]
[1773243057064,10.577,85.077,85.006,10.585]
[1773243057271,6.95895351,85.079,85.006,10.585]
[1773243057463,6.95895351,85.079,84.991,7.17206046]
[1773243057974,10.58,85.05,84.991,7.17206046]
[1773243058176,6.95895351,85.056,84.991,7.17206046]
[1773243058868,6.95895351,85.089,84.991,7.17206046]
[1773243059264,10.579,85.057,84.998,10.586]
[1773243059669,6.95895351,85.07,84.999,7.17206046]
[1773243059970,10.578,85.068,85.005,7.17206046]
[1773243060375,6.95895351,85.07,84.981,7.17206046]
[1773243060574,6.95895351,85.07,84.988,7.17206046]
[1773243060771,6.95895351,85.07,84.965,0.0001287]
[1773243060772,6.95895351,85.069,84.965,0.0001287]
[1773243061270,6.95895351,85.049,84.965,0.0001287]
[1773243061665,10.583,85.024,84.965,0.0001287]
[1773243061975,6.95895351,85.049,84.965,0.0001287]
[1773243062171,10.585,85.008,84.965,0.0001287]
[1773243062473,6.95895351,85.018,84.965,0.0001287]
[1773243062669,10.584,85.016,84.965,0.0001287]
[1773243062876,6.95895351,85.018,84.965,0.0001287]
[1773243063377,6.95895351,85.006,84.965,0.0001287]
[1773243063982,6.95895351,85.006,84.91,6.42677888]
[1773243063983,6.95895351,85.006,84.91,7.17206046]
[1773243064775,6.95895351,84.999,84.91,7.17206046]
[1773243064976,10.589,84.98,84.922,10.596]
[1773243065175,6.95895351,84.979,84.91,7.17206046]
[1773243065578,6.95895351,84.999,84.911,7.17206046]
[1773243066281,14.7,85.02,84.882,2.04851086]
[1773243066282,6.95895351,84.979,84.891,7.17206046]
[1773243067085,6.95895351,84.979,84.901,7.17206046]
[1773243067882,6.95895351,84.979,84.918,10.596]
[1773243068884,6.95895351,84.979,84.901,7.17206046]
[1773243069184,6.95895351,85.009,84.901,7.17206046]
[1773243069384,6.95895351,85.009,84.926,7.17206046]
[1773243069888,6.95895351,85.009,84.929,10.595]
[1773243070381,6.95895351,85.009,84.926,7.17206046]
[1773243070777,6.95895351,85.039,84.926,7.17206046]
[1773243070982,6.95895351,85.039,84.957,10.591]
[1773243070983,10.584,85.021,84.957,10.591]
[1773243071176,6.95895351,85.029,84.941,7.17206046]
[1773243071379,6.95895351,85.009,84.923,7.17206046]
[1773243071584,10.59,84.972,84.909,10.597]
[1773243072178,6.95895351,84.982,84.903,7.17206046]
[1773243072786,6.95895351,84.982,84.905,10.598]
[1773243072987,6.95895351,85.002,84.906,7.17206046]
[1773243073188,6.95895351,85.043,84.941,7.17206046]
[1773243073482,6.42677888,85.01,84.911,7.17206046]
[1773243073687,6.95895351,85.009,84.911,7.17206046]
[1773243074283,6.95895351,85.008,84.911,7.17206046]
[1773243074491,10.588,84.986,84.924,10.596]
[1773243074690,6.95895351,85.008,84.924,10.596]
[1773243074890,6.95895351,85.008,84.911,7.17206046]
[1773243076197,6.95895351,85.008,84.9,21.12677888]
[1773243076198,10.585,85.007,84.952,10.592]
[1773243076389,10.585,85.007,84.941,7.17206046]
[1773243076587,6.95895351,85.008,84.941,7.17206046]
[1773243076987,6.95895351,85.029,84.941,7.17206046]
[1773243077194,6.95895351,85.023,84.941,7.17206046]
[1773243077690,10.586,85.005,84.941,7.17206046]
[1773243078190,6.95895351,85.023,84.941,7.17206046]
[1773243078988,6.95895351,85.004,84.941,7.17206046]
[1773243079193,6.95895351,85.004,84.901,7.17206046]
[1773243079686,10.587,84.991,84.901,7.17206046]
[1773243079995,14.7,85.028,84.901,7.17206046]
[1773243079996,13.00993476,84.99,84.901,7.17206046]
[1773243080396,10.589,84.975,84.918,10.596]
[1773243080797,6.58315588,84.989,84.901,7.17206046]
[1773243080997,10.59,84.967,84.908,10.597]
[1773243081200,10.59,84.967,84.901,7.17206046]
[1773243081895,6.58315588,84.96,84.882,6.57196266]
[1773243082300,6.58315588,84.96,84.863,6.57196266]
[1773243082301,6.58315588,84.949,84.863,6.57196266]
[1773243082795,6.58315588,84.969,84.906,6.57196266]
[1773243083295,10.593,84.944,84.886,10.6]
[1773243083797,10.593,84.944,84.875,6.57196266]
[1773243083798,6.58315588,84.959,84.875,6.57196266]
[1773243084397,6.58315588,84.984,84.926,10.595]
[1773243084593,6.58315588,84.984,84.916,6.57196266]
[1773243084793,6.58315588,85.006,84.916,6.57196266]
[1773243085099,10.589,84.98,84.916,6.57196266]
[1773243085488,6.58315588,85.006,84.916,6.57196266]
[1773243085801,6.58315588,85.006,84.933,6.57196266]
[1773243086298,6.58315588,85.006,84.919,6.57196266]
[1773243086699,10.59,84.973,84.919,6.57196266]
[1773243087101,6.58315588,85.006,84.919,6.57196266]
[1773243087300,6.58315588,85.006,84.921,6.57196266]
[1773243087594,6.58315588,85.004,84.921,6.57196266]
[1773243087795,10.59,84.972,84.921,6.57196266]
[1773243087999,6.58315588,85.004,84.921,6.57196266]
[1773243088498,10.591,84.965,84.921,6.57196266]
[1773243088708,6.58315588,85.004,84.921,6.57196266]
[1773243089289,6.58315588,84.969,84.891,6.57196266]
[1773243089895,6.58315588,84.967,84.891,6.57196266]
[1773243090092,10.596,84.921,84.87,6.57196266]
[1773243090296,6.58315588,84.945,84.87,6.57196266]
[1773243090494,10.596,84.92,84.87,17.17396266]
[1773243090698,6.58315588,84.945,84.87,17.17396266]
[1773243091201,6.58315588,84.945,84.87,6.57196266]
[1773243092201,6.58315588,84.929,84.85,6.57196266]
[1773243092396,10.599,84.894,84.85,6.57196266]
[1773243092602,10.599,84.894,84.812,2.04980194]
[1773243092603,6.58315588,84.909,84.813,6.57196266]
[1773243092902,10.601,84.881,84.816,10.609]
[1773243093090,6.58315588,84.909,84.817,6.57196266]
[1773243093798,6.58315588,84.909,84.799,14.7]
[1773243093799,6.58315588,84.909,84.828,6.57196266]
[1773243094200,6.58315588,84.93,84.837,6.57196266]
[1773243094502,6.58315588,84.909,84.813,6.57196266]
[1773243094895,6.58315588,84.909,84.82,6.57196266]
[1773243095202,6.46042937,84.91,84.8,6.46042937]
[1773243095203,6.58315588,84.889,84.8,6.57196266]
[1773243095393,6.58315588,84.869,84.8,6.57196266]
[1773243096196,6.58315588,84.869,84.801,6.57196266]
[1773243096797,10.604,84.857,84.801,6.57196266]
[1773243096998,6.58315588,84.889,84.801,6.57196266]
[1773243099300,10.602,84.87,84.801,6.57196266]
[1773243099494,6.58315588,84.889,84.801,6.57196266]
[1773243100300,5.85165827,84.913,84.822,6.19253418]
[1773243100799,5.85165827,84.923,84.85,6.19253418]
[1773243101391,5.85165827,84.919,84.829,6.19253418]
[1773243101598,5.85165827,84.899,84.791,6.19253418]
[1773243102498,10.602,84.874,84.809,6.19253418]
[1773243103295,10.603,84.864,84.809,6.19253418]
[1773243103603,14.72,84.909,84.809,6.19253418]
[1773243103604,5.85165827,84.879,84.809,6.19253418]
[1773243103994,20.57165827,84.899,84.812,6.19253418]
[1773243104199,5.85165827,84.898,84.812,6.19253418]
[1773243105200,5.85165827,84.879,84.779,6.19253418]
[1773243106306,10.605,84.85,84.793,16.80453418]
[1773243106605,10.605,84.85,84.793,6.19253418]
[1773243107101,5.85165827,84.879,84.794,6.19253418]
[1773243107805,5.85165827,84.879,84.795,6.19253418]
[1773243108908,5.85165827,84.879,84.809,6.19253418]
[1773243109297,5.85165827,84.879,84.78,6.46042937]
[1773243109298,5.85165827,84.879,84.81,6.19253418]
[1773243109703,5.85165827,84.879,84.812,5.68676586]
[1773243110506,10.601,84.878,84.812,5.68676586]
[1773243110706,5.85165827,84.879,84.812,5.68676586]
[1773243111406,10.605,84.852,84.812,5.68676586]
[1773243111805,5.85165827,84.879,84.812,5.68676586]
[1773243112511,10.603,84.862,84.812,5.68676586]
[1773243112901,5.85165827,84.879,84.812,5.68676586]
[1773243113106,5.85165827,84.879,84.813,10.609]
[1773243113512,10.602,84.872,84.813,10.609]
[1773243113811,5.85165827,84.879,84.812,5.68676586]
[1773243114205,10.604,84.857,84.812,5.68676586]
[1773243116718,10.603,84.866,84.812,5.68676586]
[1773243116918,5.85165827,84.879,84.812,5.68676586]
[1773243118016,10.603,84.868,84.815,5.68676586]
[1773243118314,5.85165827,84.879,84.775,5.68676586]
[1773243118712,5.85165827,84.879,84.802,16.29776586]
[1773243119115,5.85165827,84.879,84.803,5.68676586]
[1773243120116,5.85165827,84.879,84.817,5.68676586]
[1773243120319,6.46042937,84.83,84.755,5.68676586]
[1773243120518,164.912,84.881,84.753,16.53759227]
[1773243120519,6.46042937,84.79,84.753,16.53759227]
[1773243120826,5.56562564,84.789,84.68,6.46042937]
[1773243121214,10.615,84.767,84.694,10.624]
[1773243121410,10.615,84.767,84.63,6.46042937]
[1773243121411,10.615,84.767,84.67,6.46042937]
[1773243121614,10.615,84.767,84.663,49.68]
[1773243121615,5.56562564,84.769,84.66,6.46042937]
[1773243121821,5.56562564,84.749,84.64,6.46042937]
[1773243122223,10.619,84.735,84.655,10.629]
[1773243122617,10.619,84.735,84.656,5.68676586]
[1773243123018,5.56562564,84.729,84.656,5.68676586]
[1773243123522,14.72,84.739,84.577,5.68676586]
[1773243123523,10.629,84.66,84.577,5.68676586]
[1773243123715,6.46042937,84.66,84.577,5.68676586]
[1773243123917,165.305,84.68,84.542,5.68676586]
[1773243123918,5.56562564,84.639,84.542,5.68676586]
[1773243124112,5.56562564,84.629,84.542,5.68676586]
[1773243124316,6.46042937,84.64,84.542,5.68676586]
[1773243124515,10.631,84.639,84.547,5.68676586]
[1773243124720,5.56562564,84.65,84.561,5.68676586]
[1773243125025,10.633,84.622,84.561,5.68676586]
[1773243125427,14.72,84.66,84.54,5.68676586]
[1773243125428,5.56562564,84.619,84.54,5.68676586]
[1773243125623,5.56562564,84.663,84.551,5.68676586]
[1773243125823,5.56562564,84.663,84.571,5.68676586]
[1773243126025,10.63,84.648,84.591,5.68676586]
[1773243126321,5.56562564,84.699,84.611,5.68676586]
[1773243127422,5.56562564,84.699,84.56,6.46042937]
[1773243127423,5.56562564,84.669,84.581,5.68676586]
[1773243128321,5.56562564,84.669,84.534,14.74]
[1773243128322,5.56562564,84.689,84.601,5.68676586]
[1773243128726,5.56562564,84.669,84.577,5.68676586]
[1773243128926,5.56562564,84.669,84.484,165.685]
[1773243128927,5.56562564,84.649,84.553,5.68676586]
[1773243129128,5.56562564,84.629,84.553,5.68676586]
[1773243129728,5.56562564,84.648,84.553,5.68676586]
[1773243129927,165.277,84.694,84.553,5.68676586]
[1773243129928,10.633,84.623,84.553,5.68676586]
[1773243130228,5.56562564,84.619,84.531,5.68676586]
[1773243130629,5.56562564,84.619,84.483,188.5]
[1773243130630,5.56562564,84.579,84.498,5.68676586]
[1773243130829,5.56562564,84.599,84.501,5.68676586]
[1773243131330,10.638,84.59,84.501,5.68676586]
[1773243131522,5.56562564,84.599,84.501,5.68676586]
[1773243131727,5.56562564,84.599,84.504,5.68676586]
[1773243132127,5.56562564,84.599,84.521,5.68676586]
[1773243132334,5.56562564,84.599,84.525,5.68676586]
[1773243132623,5.56562564,84.621,84.525,5.68676586]
[1773243133022,5.56562564,84.621,84.52,6.46042937]
[1773243133023,5.56562564,84.621,84.527,5.68676586]
[1773243133629,5.56562564,84.621,84.534,5.68676586]
[1773243133830,5.56562564,84.644,84.541,5.68676586]
[1773243134028,5.56562564,84.644,84.561,5.68676586]
[1773243134227,10.629,84.659,84.581,5.68676586]
[1773243134426,5.56562564,84.666,84.581,5.68676586]
[1773243134626,5.56562564,84.666,84.585,10.638]
[1773243134830,10.627,84.675,84.586,5.68676586]
[1773243135223,5.56562564,84.688,84.614,5.68676586]
[1773243135423,165.146,84.761,84.621,5.68676586]
[1773243135424,5.56562564,84.712,84.621,5.68676586]
[1773243135626,5.56562564,84.712,84.58,14.74]
[1773243135627,5.56562564,84.759,84.641,5.68676586]
[1773243135828,10.616,84.758,84.666,5.68676586]
[1773243136128,5.56562564,84.759,84.666,5.68676586]
[1773243136427,5.56562564,84.731,84.642,5.68676586]
[1773243136931,10.618,84.749,84.669,5.68676586]
[1773243137125,5.56562564,84.739,84.642,5.68676586]
[1773243137523,10.621,84.723,84.644,5.68676586]
[1773243138029,5.56562564,84.745,84.658,5.68676586]
[1773243138529,5.56562564,84.739,84.658,5.68676586]
[1773243139025,5.56562564,84.739,84.631,5.68676586]
[1773243139427,5.56562564,84.736,84.652,5.68676586]
[1773243140335,5.56562564,84.736,84.631,3.9686357]
[1773243140531,10.621,84.72,84.637,3.9686357]
[1773243140730,4.05389817,84.749,84.651,3.9686357]
[1773243141028,14.67189817,84.749,84.666,3.9686357]
[1773243141528,14.67189817,84.749,84.596,165.466]
[1773243141529,4.05389817,84.749,84.67,6.46042937]
[1773243141833,4.05389817,84.749,84.674,3.9686357]
[1773243142432,188.86,84.811,84.69,3.9686357]
[1773243142433,4.05389817,84.773,84.69,3.9686357]
[1773243142629,164.967,84.853,84.691,3.9686357]
[1773243142630,4.05389817,84.795,84.691,3.9686357]
[1773243143224,4.05389817,84.795,84.69,6.46042937]
[1773243143225,4.05389817,84.774,84.698,3.9686357]
[1773243143737,10.616,84.764,84.698,3.9686357]
[1773243144337,4.05389817,84.774,84.698,3.9686357]
[1773243144534,4.05389817,84.761,84.674,3.9686357]
[1773243144733,4.05389817,84.749,84.651,3.9686357]
[1773243145234,4.05389817,84.749,84.664,10.628]
[1773243145433,4.05389817,84.749,84.618,14.74]
[1773243145434,4.05389817,84.749,84.665,3.9686357]
[1773243146135,4.05389817,84.749,84.619,3.9686357]
[1773243146333,4.05389817,84.729,84.621,3.9686357]
[1773243146734,4.05389817,84.729,84.65,3.9686357]
[1773243147139,14.72,84.74,84.65,3.9686357]
[1773243147538,4.05389817,84.729,84.65,3.9686357]
[1773243147840,4.05389817,84.727,84.621,3.9686357]
[1773243148029,4.05389817,84.711,84.64,10.631]
[1773243148229,14.72,84.726,84.621,3.9686357]
[1773243148441,289.89136215,84.762,84.661,3.9686357]
[1773243148739,289.89136215,84.762,84.683,3.9686357]
[1773243149334,4.05389817,84.761,84.683,3.9686357]
[1773243149534,4.05389817,84.749,84.683,3.9686357]
[1773243149832,4.05389817,84.761,84.683,3.9686357]
[1773243150238,10.618,84.745,84.683,3.9686357]
[1773243150634,4.05389817,84.761,84.683,3.9686357]
[1773243150840,10.618,84.749,84.686,10.625]
[1773243151135,4.05389817,84.759,84.683,3.9686357]
[1773243151338,285.83746398,84.762,84.62,165.419]
[1773243151339,4.05389817,84.726,84.637,3.9686357]
[1773243151534,4.05389817,84.724,84.637,3.9686357]
[1773243151739,4.05389817,84.739,84.637,3.9686357]
[1773243152042,4.05389817,84.737,84.637,3.9686357]
[1773243152239,4.05389817,84.737,84.641,3.9686357]
[1773243152839,10.622,84.717,84.642,10.631]
[1773243153037,10.622,84.717,84.62,6.50354684]
[1773243153038,4.05389817,84.735,84.643,3.9686357]
[1773243153337,4.05389817,84.733,84.643,3.9686357]
[1773243153937,14.72,84.75,84.643,3.9686357]
[1773243154138,10.618,84.749,84.682,10.626]
[1773243154343,4.05389817,84.739,84.654,3.9686357]
[1773243154743,10.621,84.721,84.654,3.9686357]
[1773243155145,14.74,84.736,84.654,3.9686357]
[1773243155347,4.05389817,84.739,84.654,3.9686357]
[1773243155640,4.05389817,84.739,84.675,10.627]
[1773243156046,21.222,84.804,84.675,3.9686357]
[1773243156047,4.05389817,84.763,84.675,3.9686357]
[1773243156247,289.89136215,84.762,84.675,3.9686357]
[1773243156647,10.618,84.742,84.675,3.9686357]
[1773243156841,4.05389817,84.761,84.675,3.9686357]
[1773243158039,10.619,84.74,84.677,10.626]
[1773243158247,4.05389817,84.759,84.677,10.626]
[1773243158450,4.05389817,84.759,84.678,3.9686357]
[1773243158648,10.617,84.751,84.684,10.626]
[1773243158852,10.617,84.751,84.684,14.5946357]
[1773243159051,10.617,84.751,84.684,3.9686357]
[1773243159550,10.618,84.743,84.684,3.9686357]
[1773243160147,4.05389817,84.754,84.677,3.9686357]
[1773243160448,3.95610679,84.754,84.648,4.09665583]
[1773243160651,10.62,84.726,84.648,4.09665583]
[1773243160954,3.95610679,84.739,84.681,10.626]
[1773243161252,10.619,84.736,84.668,4.09665583]
[1773243161453,3.95610679,84.739,84.668,4.09665583]
[1773243161752,10.621,84.719,84.646,4.09665583]
[1773243162255,14.74,84.736,84.646,4.09665583]
[1773243162256,3.95610679,84.735,84.646,4.09665583]
[1773243162456,10.62,84.729,84.671,14.72365583]
[1773243162655,3.95610679,84.735,84.672,4.09665583]
[1773243163245,3.95610679,84.735,84.69,10.625]
[1773243163447,3.95610679,84.735,84.672,4.09665583]
[1773243163653,10.619,84.734,84.672,14.72365583]
[1773243164152,3.95610679,84.735,84.672,4.09665583]
[1773243164955,3.95610679,84.735,84.689,10.625]
[1773243165259,3.95610679,84.759,84.689,10.625]
[1773243166257,3.95610679,84.779,84.691,4.09665583]
[1773243167553,21.221,84.806,84.691,4.09665583]
[1773243167554,289.79357077,84.762,84.691,4.09665583]
[1773243168659,285.83746398,84.762,84.711,10.622]
[1773243168957,285.83746398,84.762,84.691,4.09665583]
[1773243169253,267.95046398,84.762,84.711,4.09665583]
[1773243169558,3.95610679,84.802,84.711,4.09665583]
[1773243170453,3.98512295,84.784,84.711,4.09665583]
[1773243171259,6.50354684,84.79,84.711,4.09665583]
[1773243171260,3.98512295,84.774,84.711,4.09665583]
[1773243171457,3.98512295,84.774,84.681,3.80383739]
[1773243171963,3.98512295,84.774,84.68,6.50354684]
[1773243171964,10.615,84.77,84.702,3.80383739]
[1773243172358,3.98512295,84.774,84.702,3.80383739]
[1773243172557,10.613,84.786,84.732,10.62]
[1773243172957,10.48866979,84.79,84.732,10.62]
[1773243173262,10.48866979,84.79,84.684,14.74]
[1773243173263,3.98512295,84.79,84.739,10.619]
[1773243173463,3.98512295,84.79,84.721,3.80383739]
[1773243174164,6.50354684,84.81,84.721,3.80383739]
[1773243174363,10.612,84.794,84.745,10.618]
[1773243174562,3.98512295,84.809,84.745,10.618]
[1773243174861,3.98512295,84.82,84.746,3.80383739]
[1773243175167,3.98512295,84.82,84.748,10.618]